[Event "Early-Titled-Tuesday-Blitz-January-23-2024"]
[Site "Chess.com"]
[Date "2024.01.23"]
[Round "3"]
[White "jefferyx"]
[Black "Paladin61"]
[Result "0-1"]
[WhiteElo "3002"]
[BlackElo "2741"]
[TimeControl "180+1"]
[EndTime "8:28:54 PST"]
[Termination "Paladin61 won by resignation"]

1. d4 {[%clk 0:03:00.9]} 1... Nf6 {[%clk 0:02:54.7]} 2. c4 {[%clk 0:03:00.7]}
2... g6 {[%clk 0:02:45.2]} 3. Nc3 {[%clk 0:03:00.6]} 3... Bg7 {[%clk 0:02:45.5]}
4. e4 {[%clk 0:03:00.4]} 4... d6 {[%clk 0:02:45.9]} 5. Be2 {[%clk 0:03:00.8]}
5... O-O {[%clk 0:02:45.8]} 6. Be3 {[%clk 0:03:01.4]} 6... Na6 {[%clk 0:02:45]}
7. Nf3 {[%clk 0:02:55.7]} 7... c6 {[%clk 0:02:43.7]} 8. O-O {[%clk 0:02:54.7]}
8... e5 {[%clk 0:02:44]} 9. d5 {[%clk 0:02:53.9]} 9... Ng4 {[%clk 0:02:44.3]}
10. Bg5 {[%clk 0:02:53.4]} 10... f6 {[%clk 0:02:44.8]} 11. Bh4 {[%clk
0:02:47.8]} 11... c5 {[%clk 0:02:44.8]} 12. Nd2 {[%clk 0:02:47.6]} 12... h5
{[%clk 0:02:36.7]} 13. a3 {[%clk 0:02:45.4]} 13... Nh6 {[%clk 0:02:36.6]} 14. f3
{[%clk 0:02:43.7]} 14... Nf7 {[%clk 0:02:36.9]} 15. Rb1 {[%clk 0:02:40.4]} 15...
Bd7 {[%clk 0:02:32.9]} 16. b4 {[%clk 0:02:40.1]} 16... b6 {[%clk 0:02:32.7]} 17.
Kh1 {[%clk 0:02:38.1]} 17... Bh6 {[%clk 0:02:32.6]} 18. Bf2 {[%clk 0:02:34.6]}
18... f5 {[%clk 0:02:27.6]} 19. exf5 {[%clk 0:02:28.6]} 19... gxf5 {[%clk
0:02:27.3]} 20. bxc5 {[%clk 0:02:22.8]} 20... Nxc5 {[%clk 0:02:25.7]} 21. Nb3
{[%clk 0:02:18.6]} 21... Na4 {[%clk 0:02:16.1]} 22. Qc2 {[%clk 0:02:00.7]} 22...
Qg5 {[%clk 0:02:07.6]} 23. f4 {[%clk 0:01:43.7]} 23... Qg6 {[%clk 0:01:36.4]}
24. fxe5 {[%clk 0:01:40.7]} 24... dxe5 {[%clk 0:01:36.4]} 25. Nxa4 {[%clk
0:01:26.5]} 25... Bxa4 {[%clk 0:01:37.3]} 26. c5 {[%clk 0:01:27.2]} 26... bxc5
{[%clk 0:01:24.8]} 27. Qxc5 {[%clk 0:01:28.1]} 27... Nd6 {[%clk 0:01:19.3]} 28.
Qb4 {[%clk 0:01:21.9]} 28... Bxb3 {[%clk 0:01:12.2]} 29. Rxb3 {[%clk 0:01:22.8]}
29... Ne4 {[%clk 0:01:01]} 30. Be1 {[%clk 0:01:22.8]} 30... Kh8 {[%clk
0:00:58.2]} 31. Qe7 {[%clk 0:00:59.9]} 31... Rae8 {[%clk 0:00:41.6]} 32. Qh4
{[%clk 0:00:59.2]} 32... Nf6 {[%clk 0:00:40.8]} 33. Rb7 {[%clk 0:00:48.6]} 33...
Rg8 {[%clk 0:00:39.7]} 34. Qh3 {[%clk 0:00:47.4]} 34... Ng4 {[%clk 0:00:25.8]}
35. Rxa7 {[%clk 0:00:47.1]} 35... Rc8 {[%clk 0:00:11.2]} 36. Ra6 {[%clk
0:00:46.3]} 36... Qg5 {[%clk 0:00:09.3]} 37. Bxg4 {[%clk 0:00:34.2]} 37... fxg4
{[%clk 0:00:09.4]} 38. Qd3 {[%clk 0:00:34.5]} 38... Rc1 {[%clk 0:00:09.2]} 39.
Bh4 {[%clk 0:00:27.4]} 39... Qf4 {[%clk 0:00:05.7]} 40. Bf6+ {[%clk 0:00:23.1]}
40... Bg7 {[%clk 0:00:03.4]} 41. Bxg7+ {[%clk 0:00:23.3]} 41... Rxg7 {[%clk
0:00:03.7]} 42. Kg1 {[%clk 0:00:17.5]} 42... Rxf1+ {[%clk 0:00:03.4]} 43. Qxf1
{[%clk 0:00:18.4]} 43... Qd4+ {[%clk 0:00:03.6]} 44. Kh1 {[%clk 0:00:18.2]}
44... Qxd5 {[%clk 0:00:03.4]} 45. a4 {[%clk 0:00:16.8]} 45... Rf7 {[%clk
0:00:03.3]} 46. Rf6 {[%clk 0:00:16.5]} 46... Rxf6 {[%clk 0:00:02.8]} 47. Qxf6+
{[%clk 0:00:17.4]} 47... Kh7 {[%clk 0:00:03.4]} 48. Qf1 {[%clk 0:00:15.8]} 48...
Kg6 {[%clk 0:00:03.3]} 49. Qa1 {[%clk 0:00:15.2]} 49... Qa5 {[%clk 0:00:02.5]}
50. h4 {[%clk 0:00:12.3]} 50... Kf5 {[%clk 0:00:01.1]} 51. Kh2 {[%clk
0:00:11.9]} 51... Ke6 {[%clk 0:00:02]} 52. Qa2+ {[%clk 0:00:11.5]} 52... Kf5
{[%clk 0:00:02.1]} 53. Qb1+ {[%clk 0:00:10.9]} 53... Kf4 {[%clk 0:00:01.4]} 54.
Qb5 {[%clk 0:00:09.9]} 54... g3+ {[%clk 0:00:01.1]} 55. Kh3 {[%clk 0:00:09.7]}
55... Qe1 {[%clk 0:00:02]} 56. Qc4+ {[%clk 0:00:08.9]} 56... e4 {[%clk
0:00:02.4]} 57. Qc7+ {[%clk 0:00:08.4]} 57... Ke3 {[%clk 0:00:02]} 58. Qxg3+
{[%clk 0:00:04.8]} 58... Qxg3+ {[%clk 0:00:02]} 59. Kxg3 {[%clk 0:00:05.7]}
59... Kd2 {[%clk 0:00:02.8]} 60. Kf4 {[%clk 0:00:01.7]} 60... e3 {[%clk
0:00:03.7]} 61. g4 {[%clk 0:00:02.6]} 61... e2 {[%clk 0:00:04.2]} 62. gxh5
{[%clk 0:00:03]} 62... e1=Q {[%clk 0:00:04.7]} 63. h6 {[%clk 0:00:03.9]} 63...
Qxh4+ {[%clk 0:00:05]} 64. Kf5 {[%clk 0:00:03.7]} 64... Qxh6 {[%clk 0:00:05.9]}
0-1

[Event "Early-Titled-Tuesday-Blitz-January-23-2024"]
[Site "Chess.com"]
[Date "2024.01.23"]
[Round "3"]
[White "ProChessWICTH"]
[Black "Rodalquilar"]
[Result "1-0"]
[WhiteElo "2521"]
[BlackElo "2722"]
[TimeControl "180+1"]
[EndTime "8:29:00 PST"]
[Termination "ProChessWICTH won by checkmate"]

1. e4 {[%clk 0:03:00.9]} 1... d5 {[%clk 0:02:59.7]} 2. exd5 {[%clk 0:02:57.2]}
2... Qxd5 {[%clk 0:03:00.6]} 3. Nc3 {[%clk 0:02:57.6]} 3... Qa5 {[%clk
0:03:00.7]} 4. Bc4 {[%clk 0:02:56.5]} 4... Nf6 {[%clk 0:03:00.7]} 5. d3 {[%clk
0:02:56.1]} 5... Bg4 {[%clk 0:03:00.1]} 6. Ne2 {[%clk 0:02:53.3]} 6... Nc6
{[%clk 0:02:57.5]} 7. O-O {[%clk 0:02:50.5]} 7... Qh5 {[%clk 0:02:37.7]} 8. f3
{[%clk 0:02:43.1]} 8... Bd7 {[%clk 0:02:29.4]} 9. Ng3 {[%clk 0:02:38.7]} 9...
Qc5+ {[%clk 0:02:25.9]} 10. Kh1 {[%clk 0:02:36.8]} 10... Na5 {[%clk 0:02:25.5]}
11. Nce4 {[%clk 0:02:08.1]} 11... Nxe4 {[%clk 0:02:21.7]} 12. Nxe4 {[%clk
0:02:09]} 12... Qb6 {[%clk 0:02:21.7]} 13. Bb3 {[%clk 0:02:03.8]} 13... Nxb3
{[%clk 0:02:21.5]} 14. axb3 {[%clk 0:02:04.7]} 14... e6 {[%clk 0:02:12.3]} 15.
Qe2 {[%clk 0:02:00.7]} 15... Be7 {[%clk 0:02:05.6]} 16. Be3 {[%clk 0:01:53.6]}
16... Qc6 {[%clk 0:01:51.7]} 17. Ra4 {[%clk 0:01:14.2]} 17... b6 {[%clk
0:01:45.6]} 18. Rfa1 {[%clk 0:01:08.6]} 18... Qb7 {[%clk 0:01:44.6]} 19. R4a2
{[%clk 0:00:35.3]} 19... O-O {[%clk 0:01:43.9]} 20. Bd4 {[%clk 0:00:22.2]} 20...
Rfd8 {[%clk 0:01:38.9]} 21. Bc3 {[%clk 0:00:21.6]} 21... a5 {[%clk 0:01:38.9]}
22. Rf1 {[%clk 0:00:18.9]} 22... Qd5 {[%clk 0:01:14.4]} 23. Raa1 {[%clk
0:00:18.7]} 23... a4 {[%clk 0:00:57.8]} 24. bxa4 {[%clk 0:00:18.3]} 24... Rxa4
{[%clk 0:00:58.7]} 25. Qf2 {[%clk 0:00:17.9]} 25... f6 {[%clk 0:00:42.2]} 26.
Qg3 {[%clk 0:00:17.6]} 26... e5 {[%clk 0:00:36]} 27. Rxa4 {[%clk 0:00:16.3]}
27... Bxa4 {[%clk 0:00:36]} 28. b3 {[%clk 0:00:16.9]} 28... Bc6 {[%clk
0:00:34.3]} 29. Ra1 {[%clk 0:00:17.4]} 29... Qd7 {[%clk 0:00:26.6]} 30. Ra7
{[%clk 0:00:11.6]} 30... Ra8 {[%clk 0:00:25.6]} 31. Rxa8+ {[%clk 0:00:11.8]}
31... Bxa8 {[%clk 0:00:26.5]} 32. h4 {[%clk 0:00:11.3]} 32... Kf7 {[%clk
0:00:26.3]} 33. h5 {[%clk 0:00:11.4]} 33... Qf5 {[%clk 0:00:26.5]} 34. Qh4
{[%clk 0:00:10.2]} 34... Bc6 {[%clk 0:00:23.5]} 35. Kh2 {[%clk 0:00:09.8]} 35...
Be8 {[%clk 0:00:23.6]} 36. h6 {[%clk 0:00:08.7]} 36... g5 {[%clk 0:00:17.7]} 37.
Qf2 {[%clk 0:00:07.7]} 37... Qg6 {[%clk 0:00:11.8]} 38. d4 {[%clk 0:00:08.1]}
38... Qxh6+ {[%clk 0:00:10.8]} 39. Kg1 {[%clk 0:00:08.3]} 39... exd4 {[%clk
0:00:09.7]} 40. Qxd4 {[%clk 0:00:08.9]} 40... Kf8 {[%clk 0:00:09.6]} 41. Qc4
{[%clk 0:00:07.8]} 41... f5 {[%clk 0:00:05.6]} 42. Ng3 {[%clk 0:00:04.7]} 42...
Bc5+ {[%clk 0:00:05.7]} 43. Bd4 {[%clk 0:00:04.3]} 43... Bf7 {[%clk 0:00:03]}
44. Qc3 {[%clk 0:00:02.7]} 44... Qd6 {[%clk 0:00:01.9]} 45. Bxc5 {[%clk
0:00:01.9]} 45... bxc5 {[%clk 0:00:02.2]} 46. Nxf5 {[%clk 0:00:01.8]} 46... Qd5
{[%clk 0:00:01.8]} 47. Ne3 {[%clk 0:00:01.6]} 47... Qd6 {[%clk 0:00:01.6]} 48.
Qh8+ {[%clk 0:00:02.2]} 48... Ke7 {[%clk 0:00:01.8]} 49. Nf5+ {[%clk 0:00:02.3]}
49... Ke6 {[%clk 0:00:01.3]} 50. Nxd6 {[%clk 0:00:03.2]} 50... cxd6 {[%clk
0:00:01.8]} 51. Kh2 {[%clk 0:00:04.1]} 51... Bg6 {[%clk 0:00:02]} 52. Qg7 {[%clk
0:00:04.7]} 52... Kd5 {[%clk 0:00:02.4]} 53. Qc3 {[%clk 0:00:05.6]} 53... Kc6
{[%clk 0:00:02.7]} 54. Qd2 {[%clk 0:00:06.4]} 54... d5 {[%clk 0:00:03.2]} 55. c3
{[%clk 0:00:07]} 55... Kd6 {[%clk 0:00:03.2]} 56. b4 {[%clk 0:00:07.9]} 56... d4
{[%clk 0:00:02.7]} 57. cxd4 {[%clk 0:00:07.9]} 57... Kc6 {[%clk 0:00:03.1]} 58.
dxc5 {[%clk 0:00:08]} 58... g4 {[%clk 0:00:03.8]} 59. fxg4 {[%clk 0:00:08.1]}
59... h5 {[%clk 0:00:04]} 60. gxh5 {[%clk 0:00:08.2]} 60... Bf5 {[%clk
0:00:04.2]} 61. Qg5 {[%clk 0:00:08.1]} 61... Kb5 {[%clk 0:00:04.6]} 62. h6
{[%clk 0:00:08.8]} 62... Bh7 {[%clk 0:00:04.6]} 63. Qg7 {[%clk 0:00:09.1]} 63...
Bd3 {[%clk 0:00:04.8]} 64. h7 {[%clk 0:00:09.6]} 64... Ka4 {[%clk 0:00:05.4]}
65. h8=Q {[%clk 0:00:09.6]} 65... Bb5 {[%clk 0:00:06.3]} 66. Qa7+ {[%clk
0:00:09.6]} 66... Kb3 {[%clk 0:00:06.6]} 67. Qh3+ {[%clk 0:00:10.1]} 67... Bd3
{[%clk 0:00:06.3]} 68. Qa6 {[%clk 0:00:09.1]} 68... Kb2 {[%clk 0:00:07.2]} 69.
Qhxd3 {[%clk 0:00:08.6]} 69... Kc1 {[%clk 0:00:07.1]} 70. Qa1# {[%clk 0:00:09]}
1-0

[Event "Early-Titled-Tuesday-Blitz-January-23-2024"]
[Site "Chess.com"]
[Date "2024.01.23"]
[Round "3"]
[White "HamedWafa4"]
[Black "toninhojit"]
[Result "0-1"]
[WhiteElo "2713"]
[BlackElo "2452"]
[TimeControl "180+1"]
[EndTime "8:29:06 PST"]
[Termination "toninhojit won by resignation"]

1. e4 {[%clk 0:02:59.5]} 1... e5 {[%clk 0:02:59.3]} 2. Nf3 {[%clk 0:02:59.7]}
2... Nc6 {[%clk 0:02:59.8]} 3. Bb5 {[%clk 0:02:59.8]} 3... Nf6 {[%clk
0:02:59.5]} 4. Nc3 {[%clk 0:02:59.3]} 4... Bb4 {[%clk 0:02:58.7]} 5. O-O {[%clk
0:02:59.5]} 5... O-O {[%clk 0:02:58.3]} 6. Bxc6 {[%clk 0:02:58.7]} 6... dxc6
{[%clk 0:02:56.8]} 7. d3 {[%clk 0:02:58.6]} 7... Bd6 {[%clk 0:02:48.3]} 8. Ne2
{[%clk 0:02:58.2]} 8... Nd7 {[%clk 0:02:44.7]} 9. Ng3 {[%clk 0:02:57.7]} 9...
Nc5 {[%clk 0:02:45.1]} 10. h3 {[%clk 0:02:54.5]} 10... Ne6 {[%clk 0:02:45.5]}
11. Nf5 {[%clk 0:02:54]} 11... c5 {[%clk 0:02:42.9]} 12. b3 {[%clk 0:02:39]}
12... Nd4 {[%clk 0:02:41.6]} 13. N3xd4 {[%clk 0:02:33]} 13... cxd4 {[%clk
0:02:42.5]} 14. Nxd6 {[%clk 0:02:30.9]} 14... Qxd6 {[%clk 0:02:40.3]} 15. f4
{[%clk 0:02:31.7]} 15... f6 {[%clk 0:02:30.2]} 16. fxe5 {[%clk 0:02:27.4]} 16...
fxe5 {[%clk 0:02:31.1]} 17. Rxf8+ {[%clk 0:02:27.5]} 17... Qxf8 {[%clk
0:02:28.1]} 18. Qh5 {[%clk 0:02:27.8]} 18... Qe7 {[%clk 0:02:24.2]} 19. Ba3
{[%clk 0:02:19.5]} 19... Qxa3 {[%clk 0:02:22.4]} 20. Qxe5 {[%clk 0:02:15.6]}
20... Qd6 {[%clk 0:02:14.7]} 21. Qe8+ {[%clk 0:02:10.7]} 21... Qf8 {[%clk
0:02:14.7]} 22. Qe5 {[%clk 0:02:11]} 22... Qd8 {[%clk 0:01:43.8]} 23. Rf1 {[%clk
0:02:05.9]} 23... Bd7 {[%clk 0:01:37.5]} 24. Qd5+ {[%clk 0:02:03.5]} 24... Kh8
{[%clk 0:01:37.1]} 25. Qxd4 {[%clk 0:02:02.7]} 25... Be6 {[%clk 0:01:28.4]} 26.
Qe3 {[%clk 0:01:48.5]} 26... Qd6 {[%clk 0:01:24.5]} 27. d4 {[%clk 0:01:47.6]}
27... Rf8 {[%clk 0:01:23.3]} 28. Rxf8+ {[%clk 0:01:35.1]} 28... Qxf8 {[%clk
0:01:24.2]} 29. d5 {[%clk 0:01:34.7]} 29... Bg8 {[%clk 0:01:18.3]} 30. c4 {[%clk
0:01:28.8]} 30... b6 {[%clk 0:01:18.2]} 31. e5 {[%clk 0:01:28.7]} 31... Qc5
{[%clk 0:01:07.1]} 32. Qxc5 {[%clk 0:01:20.5]} 32... bxc5 {[%clk 0:01:08]} 33.
Kf2 {[%clk 0:01:21.1]} 33... g6 {[%clk 0:01:08.6]} 34. Ke3 {[%clk 0:01:21.6]}
34... Kg7 {[%clk 0:01:09.2]} 35. Kf4 {[%clk 0:01:21.9]} 35... h6 {[%clk
0:01:06.7]} 36. g4 {[%clk 0:01:21.6]} 36... g5+ {[%clk 0:01:02.4]} 37. Kf5
{[%clk 0:01:20.3]} 37... Kf7 {[%clk 0:00:41.7]} 38. e6+ {[%clk 0:01:20]} 38...
Kg7 {[%clk 0:00:35.5]} 39. Ke5 {[%clk 0:01:05.3]} 39... Kf8 {[%clk 0:00:21.8]}
40. a3 {[%clk 0:00:33.5]} 40... Ke7 {[%clk 0:00:20.3]} 41. b4 {[%clk 0:00:33.4]}
41... cxb4 {[%clk 0:00:14.5]} 42. axb4 {[%clk 0:00:34.3]} 42... Bh7 {[%clk
0:00:14.3]} 43. c5 {[%clk 0:00:34.5]} 43... Bd3 {[%clk 0:00:14]} 44. d6+ {[%clk
0:00:34.1]} 44... cxd6+ {[%clk 0:00:13.1]} 45. cxd6+ {[%clk 0:00:35]} 45... Ke8
{[%clk 0:00:13.5]} 46. Kf6 {[%clk 0:00:35.4]} 46... Bb5 {[%clk 0:00:13.3]} 47.
d7+ {[%clk 0:00:23.8]} 47... Kd8 {[%clk 0:00:05.5]} 48. Kf7 {[%clk 0:00:21.8]}
48... Bc4 {[%clk 0:00:05.9]} 49. Kf6 {[%clk 0:00:19.9]} 49... Bb5 {[%clk
0:00:03.9]} 50. Kg7 {[%clk 0:00:18.3]} 50... Bc4 {[%clk 0:00:03.8]} 51. Kf7
{[%clk 0:00:15.1]} 51... a6 {[%clk 0:00:02.3]} 52. Kf6 {[%clk 0:00:14]} 52...
Bb5 {[%clk 0:00:01.6]} 53. Kg6 {[%clk 0:00:12.3]} 53... Bc4 {[%clk 0:00:02]} 54.
Kxh6 {[%clk 0:00:12.9]} 54... Ke7 {[%clk 0:00:02.3]} 55. Kxg5 {[%clk 0:00:11]}
55... Bxe6 {[%clk 0:00:03]} 56. h4 {[%clk 0:00:09.6]} 56... Bxd7 {[%clk
0:00:03.7]} 57. h5 {[%clk 0:00:10.2]} 57... Kf7 {[%clk 0:00:04.4]} 58. h6 {[%clk
0:00:09.6]} 58... Kg8 {[%clk 0:00:04.7]} 59. Kh5 {[%clk 0:00:07]} 59... Be8+
{[%clk 0:00:04.5]} 60. Kg5 {[%clk 0:00:07.1]} 60... Kh7 {[%clk 0:00:04.8]} 61.
Kf6 {[%clk 0:00:02.6]} 61... Kxh6 {[%clk 0:00:05.2]} 62. g5+ {[%clk 0:00:03.3]}
62... Kh7 {[%clk 0:00:05.1]} 63. Ke7 {[%clk 0:00:03.6]} 63... Bg6 {[%clk
0:00:05.4]} 64. Kf6 {[%clk 0:00:04.4]} 64... Bd3 {[%clk 0:00:05.4]} 65. Ke5
{[%clk 0:00:04]} 65... Kg6 {[%clk 0:00:05.8]} 66. Kd4 {[%clk 0:00:04.6]} 66...
Bb5 {[%clk 0:00:06.3]} 67. Kc5 {[%clk 0:00:05.3]} 67... Kxg5 {[%clk 0:00:07.2]}
68. Kb6 {[%clk 0:00:06]} 68... Kf4 {[%clk 0:00:07.7]} 69. Ka5 {[%clk 0:00:06.9]}
69... Ke4 {[%clk 0:00:08.3]} 70. Kb6 {[%clk 0:00:07.8]} 70... Kd4 {[%clk
0:00:09]} 71. Ka5 {[%clk 0:00:08.7]} 71... Kc4 {[%clk 0:00:09.6]} 72. Kb6 {[%clk
0:00:09.4]} 72... Kxb4 {[%clk 0:00:10.3]} 0-1

[Event "Early-Titled-Tuesday-Blitz-January-23-2024"]
[Site "Chess.com"]
[Date "2024.01.23"]
[Round "3"]
[White "maciek_92"]
[Black "Duhless"]
[Result "1/2-1/2"]
[WhiteElo "2833"]
[BlackElo "3127"]
[TimeControl "180+1"]
[EndTime "8:29:10 PST"]
[Termination "Game drawn by repetition"]

1. c4 {[%clk 0:03:00.9]} 1... g6 {[%clk 0:02:59.1]} 2. Nc3 {[%clk 0:03:01.1]}
2... Bg7 {[%clk 0:02:58.6]} 3. g3 {[%clk 0:03:00.5]} 3... e6 {[%clk 0:02:58.1]}
4. Nf3 {[%clk 0:02:59.7]} 4... Ne7 {[%clk 0:02:59]} 5. Bg2 {[%clk 0:02:59.7]}
5... O-O {[%clk 0:02:50]} 6. O-O {[%clk 0:02:54.5]} 6... d5 {[%clk 0:02:48.3]}
7. d4 {[%clk 0:02:42.3]} 7... Nbc6 {[%clk 0:02:47.8]} 8. e3 {[%clk 0:02:38.3]}
8... dxc4 {[%clk 0:02:46.4]} 9. Qa4 {[%clk 0:02:38.2]} 9... Nf5 {[%clk
0:02:40.4]} 10. Qxc4 {[%clk 0:02:35]} 10... e5 {[%clk 0:02:33.9]} 11. dxe5
{[%clk 0:02:28]} 11... Nxe5 {[%clk 0:02:33.4]} 12. Nxe5 {[%clk 0:02:28.2]} 12...
Bxe5 {[%clk 0:02:34.3]} 13. f4 {[%clk 0:02:18.5]} 13... Bg7 {[%clk 0:02:27.9]}
14. Rd1 {[%clk 0:02:17]} 14... Be6 {[%clk 0:02:26.1]} 15. Qa4 {[%clk 0:02:08.4]}
15... Qe8 {[%clk 0:02:17.4]} 16. Qxe8 {[%clk 0:02:03]} 16... Rfxe8 {[%clk
0:02:18.3]} 17. Bxb7 {[%clk 0:01:42.9]} 17... Rad8 {[%clk 0:02:17.5]} 18. Bc6
{[%clk 0:01:17.9]} 18... Bxc3 {[%clk 0:02:05.6]} 19. Rxd8 {[%clk 0:01:17.5]}
19... Rxd8 {[%clk 0:02:06]} 20. bxc3 {[%clk 0:01:18.2]} 20... Rd1+ {[%clk
0:02:03]} 21. Kf2 {[%clk 0:01:17.6]} 21... Bc4 {[%clk 0:02:03]} 22. e4 {[%clk
0:00:58]} 22... Rf1+ {[%clk 0:01:49.2]} 23. Kg2 {[%clk 0:00:58.1]} 23... Ne3+
{[%clk 0:01:50.1]} 24. Kh3 {[%clk 0:00:58.7]} 24... Be6+ {[%clk 0:01:49.7]} 25.
f5 {[%clk 0:00:35.6]} 25... gxf5 {[%clk 0:01:47.9]} 26. exf5 {[%clk 0:00:36.5]}
26... Bxf5+ {[%clk 0:01:40.5]} 27. Kh4 {[%clk 0:00:36.7]} 27... Be6 {[%clk
0:01:12.8]} 28. Rb1 {[%clk 0:00:31.4]} 28... Nf5+ {[%clk 0:00:45.6]} 29. Kg5
{[%clk 0:00:27.8]} 29... Kg7 {[%clk 0:00:41.2]} 30. c4 {[%clk 0:00:26.4]} 30...
f6+ {[%clk 0:00:38.2]} 31. Kh5 {[%clk 0:00:24.1]} 31... Bf7+ {[%clk 0:00:12]}
32. Kg4 {[%clk 0:00:23.9]} 32... Nd4 {[%clk 0:00:11.7]} 33. Bh6+ {[%clk
0:00:21.4]} 33... Kxh6 {[%clk 0:00:10]} 34. Rxf1 {[%clk 0:00:22.3]} 34... f5+
{[%clk 0:00:09.1]} 35. Kf4 {[%clk 0:00:18.1]} 35... Nxc6 {[%clk 0:00:08.8]} 36.
Kxf5 {[%clk 0:00:15.9]} 36... Bxc4 {[%clk 0:00:07.9]} 37. Rc1 {[%clk 0:00:16.2]}
37... Bd5 {[%clk 0:00:04.9]} 38. Rc5 {[%clk 0:00:15.4]} 38... Bg2 {[%clk
0:00:04.6]} 39. a3 {[%clk 0:00:15.7]} 39... Ne7+ {[%clk 0:00:03.3]} 40. Kf6
{[%clk 0:00:15.1]} 40... Nd5+ {[%clk 0:00:03.3]} 41. Ke5 {[%clk 0:00:15.5]}
41... Kg5 {[%clk 0:00:03]} 42. Rc4 {[%clk 0:00:13.8]} 42... h5 {[%clk
0:00:02.6]} 43. h4+ {[%clk 0:00:13.1]} 43... Kg6 {[%clk 0:00:03]} 44. Rc6+
{[%clk 0:00:13.4]} 44... Kg7 {[%clk 0:00:02.7]} 45. Rc5 {[%clk 0:00:14.1]} 45...
Kg6 {[%clk 0:00:02.7]} 46. Rc6+ {[%clk 0:00:14.3]} 46... Kg7 {[%clk 0:00:03.2]}
47. Rc5 {[%clk 0:00:14.4]} 47... Kg6 {[%clk 0:00:03.5]} 48. Rc2 {[%clk
0:00:14.5]} 48... Bf3 {[%clk 0:00:03.4]} 49. Rc6+ {[%clk 0:00:14.5]} 49... Kg7
{[%clk 0:00:02.8]} 50. Rc5 {[%clk 0:00:14.2]} 50... Kg6 {[%clk 0:00:02.8]} 51.
Rc6+ {[%clk 0:00:13.6]} 51... Kg7 {[%clk 0:00:03.3]} 52. Ra6 {[%clk 0:00:14.3]}
52... Kf7 {[%clk 0:00:01]} 53. Rxa7 {[%clk 0:00:13.4]} 53... Ke7 {[%clk
0:00:01.6]} 54. Ra5 {[%clk 0:00:14.1]} 54... Nf6 {[%clk 0:00:01.4]} 55. Kf4
{[%clk 0:00:12.7]} 55... Bg4 {[%clk 0:00:01.9]} 56. Re5+ {[%clk 0:00:13.2]}
56... Kd7 {[%clk 0:00:02.1]} 57. a4 {[%clk 0:00:12.9]} 57... Ne8 {[%clk
0:00:02.5]} 58. a5 {[%clk 0:00:09.2]} 58... Nd6 {[%clk 0:00:02.7]} 59. Rg5
{[%clk 0:00:09.3]} 59... Kc6 {[%clk 0:00:02.7]} 60. Ke3 {[%clk 0:00:05.8]} 60...
Kb7 {[%clk 0:00:02.9]} 61. Kf4 {[%clk 0:00:04.2]} 61... Ka6 {[%clk 0:00:03.1]}
62. Rc5 {[%clk 0:00:04.6]} 62... Ne8 {[%clk 0:00:02.1]} 63. Ke5 {[%clk
0:00:04.4]} 63... Kb7 {[%clk 0:00:02.3]} 64. Rb5+ {[%clk 0:00:03.2]} 64... Ka6
{[%clk 0:00:02.4]} 65. Rc5 {[%clk 0:00:03.8]} 65... Kb7 {[%clk 0:00:02.9]} 66.
Rb5+ {[%clk 0:00:04.2]} 66... Ka6 {[%clk 0:00:03.3]} 67. Rc5 {[%clk 0:00:04.6]}
1/2-1/2